bitfinex-derivatives/quotes_BTCF0:USTF0_20250313
["timestamp","ask_amount","ask_price","bid_price","bid_amount"]
[1741904129620,0.12464834,80918.0,80917.0,0.05120362]
[1741904129820,0.25184834,80918.0,80917.0,0.0382]
[1741904130826,0.25184834,80918.0,80917.0,0.0694]
[1741904131622,0.25184834,80918.0,80917.0,0.1023]
[1741904132225,0.25184834,80918.0,80917.0,0.11634296]
[1741904132618,0.12464834,80918.0,80917.0,0.0389]
[1741904132819,0.25184834,80918.0,80917.0,0.0389]
[1741904133124,0.25184834,80918.0,80917.0,0.08342275]
[1741904133425,0.25184834,80918.0,80917.0,0.0718]
[1741904133633,0.25184834,80918.0,80917.0,0.0658]
[1741904133828,0.25184834,80918.0,80917.0,0.0668]
[1741904134326,0.25184834,80918.0,80917.0,0.07841155]
[1741904134719,0.25184834,80918.0,80917.0,0.09239009]
[1741904135816,0.25184834,80918.0,80917.0,0.02659009]
[1741904136225,0.25184834,80918.0,80911.0,0.0306]
[1741904136424,0.0629,80920.0,80911.0,0.0306]
[1741904136425,0.123638,80912.0,80911.0,0.0306]
[1741904136722,0.0618182,80914.0,80895.0,0.00929206]
[1741904136923,0.0618182,80914.0,80882.0,0.1890419]
[1741904136924,0.1236533,80902.0,80901.0,0.20404283]
[1741904137220,0.1236533,80902.0,80901.0,0.1854738]
[1741904137431,0.12467284,80902.0,80901.0,0.0618256]
[1741904137734,0.18817284,80902.0,80901.0,0.0618256]
[1741904138030,0.18517284,80902.0,80901.0,0.0618256]
[1741904138226,0.18517284,80902.0,80901.0,0.08040349]
[1741904139122,0.18517284,80902.0,80901.0,0.01857789]
[1741904139324,0.18617284,80902.0,80901.0,0.01857789]
[1741904139525,0.18717284,80902.0,80901.0,0.14223269]
[1741904139927,0.18717284,80902.0,80901.0,0.23813269]
[1741904140327,0.12167284,80902.0,80901.0,0.23813269]
[1741904140527,0.24883284,80902.0,80901.0,0.23813269]
[1741904141036,0.24783284,80902.0,80901.0,0.23813269]
[1741904141333,0.24783284,80902.0,80901.0,0.2195548]
[1741904141634,0.24783284,80902.0,80901.0,0.4495548]
[1741904141635,0.00101954,80902.0,80901.0,0.4495548]
[1741904143824,0.1856509,80910.0,80909.0,0.1236426]
[1741904144030,0.1746509,80910.0,80909.0,0.1236426]
[1741904147142,0.051006,80910.0,80907.0,0.0623]
[1741904147339,0.1236441,80908.0,80907.0,0.0306]
[1741904147636,0.1236441,80908.0,80907.0,0.1542456]
[1741904147833,0.0302,80908.0,80904.0,0.21951279]
[1741904148034,0.1236471,80906.0,80905.0,0.1546487]
[1741904148540,0.1863471,80906.0,80905.0,0.1546487]
[1741904151941,0.1863471,80906.0,80905.0,0.031]
[1741904152139,0.1236487,80905.0,80904.0,0.1236491]
[1741904152343,0.1236487,80905.0,80901.0,0.0001854]
[1741904152344,0.1236533,80902.0,80901.0,0.0001854]
[1741904152545,0.1236533,80902.0,80901.0,0.1238402]
[1741904152735,0.1236533,80902.0,80901.0,0.1551402]
[1741904153141,0.1550533,80902.0,80901.0,0.1238402]
[1741904153333,0.1550533,80902.0,80901.0,0.0001854]
[1741904153843,0.1550533,80902.0,80901.0,0.0011854]
[1741904154342,0.1540533,80902.0,80901.0,0.0011854]
[1741904154942,0.1540533,80902.0,80901.0,0.1248402]
[1741904155251,0.16344256,80902.0,80901.0,0.1248402]
[1741904155452,0.16344256,80902.0,80901.0,0.1558402]
[1741904155746,0.1540533,80902.0,80901.0,0.1558402]
[1741904156242,0.1540533,80902.0,80901.0,0.1248402]
[1741904158248,0.1540533,80902.0,80901.0,0.0011854]
[1741904158446,0.1540533,80902.0,80901.0,0.1248402]
[1741904159352,0.1540533,80902.0,80901.0,0.1238402]
[1741904160046,0.1540533,80902.0,80901.0,0.0001854]
[1741904160348,0.1236548,80901.0,80900.0,0.1]
[1741904160549,0.1236701,80891.0,80890.0,0.04509619]
[1741904160752,0.2508301,80891.0,80890.0,0.04509619]
[1741904161356,0.1236701,80891.0,80890.0,0.16876779]
[1741904161651,0.1542701,80891.0,80890.0,0.20016779]
[1741904161852,0.1850701,80891.0,80890.0,0.20016779]
[1741904162447,0.1840701,80891.0,80890.0,0.20016779]
[1741904163346,0.1840701,80891.0,80890.0,0.20116779]
[1741904166248,0.1840701,80891.0,80890.0,0.01209619]
[1741904166443,0.1236716,80890.0,80889.0,0.12377098]
[1741904166851,0.1844716,80890.0,80889.0,0.12377098]
[1741904167352,0.1844716,80890.0,80889.0,0.01233745]
[1741904167557,0.1844716,80890.0,80889.0,0.13601055]
[1741904167757,0.1844716,80890.0,80889.0,0.16801055]
[1741904168148,0.1844716,80890.0,80889.0,0.19831055]
[1741904169459,0.1844716,80890.0,80889.0,0.07463745]
[1741904169651,0.1844716,80890.0,80889.0,0.01233745]
[1741904170757,0.3116316,80890.0,80889.0,0.01233745]
[1741904175053,0.1236854,80881.0,80878.0,0.0324]
[1741904175249,0.1236854,80881.0,80880.0,0.34319969]
[1741904175457,0.2508454,80881.0,80880.0,0.34319969]
[1741904175954,0.1855143,80887.0,80886.0,0.1236762]
[1741904176255,0.1855143,80887.0,80884.0,0.1855196]
[1741904176256,0.1236792,80885.0,80884.0,0.1855196]
[1741904177159,0.1538792,80885.0,80884.0,0.1855196]
[1741904177970,0.1538792,80885.0,80884.0,0.1865196]
[1741904179259,0.1538792,80885.0,80884.0,0.1855196]
[1741904179466,0.1538792,80885.0,80884.0,0.1865196]
[1741904180563,0.1538792,80885.0,80884.0,0.1885196]
[1741904181152,0.1538792,80885.0,80884.0,0.1895196]
[1741904182067,0.1538792,80885.0,80884.0,0.1905196]
[1741904182560,0.1869792,80885.0,80884.0,0.1905196]
[1741904182958,0.1869792,80885.0,80884.0,0.1915196]
[1741904183359,0.1869792,80885.0,80884.0,0.0678396]
[1741904183672,0.1869792,80885.0,80884.0,0.0668396]
[1741904183968,0.1869792,80885.0,80884.0,0.0658396]
[1741904185569,0.1869792,80885.0,80884.0,0.0648396]
[1741904185768,0.1869792,80885.0,80884.0,0.0628396]
[1741904185964,0.1869792,80885.0,80884.0,0.0648396]
[1741904186568,0.1869792,80885.0,80884.0,0.0628396]
[1741904186769,0.1869792,80885.0,80884.0,0.0638396]
[1741904187661,0.1869792,80885.0,80884.0,0.002]
[1741904187974,0.1869792,80885.0,80884.0,0.1256808]
[1741904188671,0.1869792,80885.0,80884.0,0.1246808]
[1741904190266,0.1869792,80885.0,80884.0,0.1236808]
[1741904190460,0.1869792,80885.0,80884.0,0.1246808]
[1741904191474,0.19962121,80885.0,80884.0,0.1246808]
[1741904191669,0.1869792,80885.0,80884.0,0.1256808]
[1741904191863,0.1869792,80885.0,80884.0,0.002]
[1741904192272,0.1869792,80885.0,80884.0,0.1246808]
[1741904192475,0.31419027,80885.0,80884.0,0.1236808]
[1741904194863,0.32678942,80885.0,80884.0,0.1236808]
[1741904195464,0.31419027,80885.0,80884.0,0.1236808]
[1741904198475,0.1236823,80883.0,80882.0,0.0618412]
[1741904199178,0.1567823,80883.0,80882.0,0.0618412]
[1741904200984,0.1567823,80883.0,80882.0,0.0930412]
[1741904201188,0.1567823,80883.0,80882.0,0.0618412]
[1741904204979,0.1577823,80883.0,80882.0,0.0618412]
[1741904207983,0.1236854,80881.0,80880.0,0.19822313]
[1741904208278,0.1236854,80881.0,80880.0,0.01269433]
[1741904208477,9.858e-05,80881.0,80879.0,0.1236874]
[1741904208678,0.1851869,80880.0,80879.0,0.1236874]
[1741904208882,0.1851869,80880.0,80879.0,0.13618066]
[1741904211686,0.1851869,80880.0,80879.0,0.16688066]
[1741904212885,0.1851869,80880.0,80879.0,0.16788066]
[1741904213387,0.1851869,80880.0,80879.0,0.16888066]
[1741904213589,0.1851869,80880.0,80879.0,0.20168066]
[1741904213790,0.1851869,80880.0,80879.0,0.20068066]
[1741904215191,0.1851869,80880.0,80879.0,0.19968066]
[1741904216197,0.1851869,80880.0,80879.0,0.20068066]
[1741904216785,0.1851869,80880.0,80879.0,0.19968066]
[1741904217694,0.1851869,80880.0,80879.0,0.21056091]
[1741904218989,0.1851869,80880.0,80879.0,0.21056386]
[1741904219197,0.1851869,80880.0,80879.0,0.21156386]
[1741904219499,0.1851869,80880.0,80879.0,0.21156488]
[1741904219899,0.1851869,80880.0,80879.0,0.21256488]
[1741904220297,0.1851869,80880.0,80879.0,0.21156488]
[1741904220598,0.1851869,80880.0,80879.0,0.21256488]
[1741904220803,0.1851869,80880.0,80879.0,0.20168066]
[1741904221193,0.1851869,80880.0,80879.0,0.16888066]
[1741904221594,0.1851869,80880.0,80879.0,0.13818166]
[1741904221797,0.1851869,80880.0,80879.0,0.13718166]
[1741904222102,0.1851869,80880.0,80879.0,0.13618166]
[1741904222309,0.0615,80880.0,80879.0,0.19808166]
[1741904222493,0.1851869,80880.0,80879.0,0.19808166]
[1741904223006,0.0615,80880.0,80879.0,0.19808166]
[1741904223297,0.1851869,80880.0,80879.0,0.19808166]
[1741904223802,0.1851869,80880.0,80879.0,0.19908166]
[1741904224205,0.1851869,80880.0,80879.0,0.41859445]
[1741904224397,0.1851869,80880.0,80879.0,0.41959445]
[1741904225199,0.1851869,80880.0,80879.0,0.41759445]
[1741904225915,0.1851869,80880.0,80879.0,0.41859445]
[1741904226210,0.1851869,80880.0,80879.0,0.41959445]
[1741904226394,0.1851869,80880.0,80879.0,0.41859445]
[1741904226702,0.0615,80880.0,80879.0,0.41859445]
[1741904226910,0.0615,80880.0,80879.0,0.19908166]
[1741904227110,0.0615,80880.0,80879.0,0.20008166]
[1741904227901,0.1851869,80880.0,80879.0,0.20008166]
[1741904229311,0.1851869,80880.0,80879.0,0.19808166]
[1741904229612,0.1851869,80880.0,80879.0,0.16828166]
[1741904230112,0.1851869,80880.0,80879.0,0.16728166]
[1741904230811,0.1851869,80880.0,80879.0,0.19738166]
[1741904232512,0.1851869,80880.0,80879.0,0.13618166]
[1741904233312,0.1851869,80880.0,80879.0,0.16858166]
[1741904233622,0.1861869,80880.0,80879.0,0.16858166]
[1741904235723,0.1851869,80880.0,80879.0,0.16858166]
[1741904236117,0.1851869,80880.0,80879.0,0.38964652]
[1741904237225,0.1851869,80880.0,80879.0,0.35724652]
[1741904238420,0.1851869,80880.0,80879.0,0.13618166]
[1741904240025,0.1861869,80880.0,80879.0,0.13618166]
[1741904240226,0.1871869,80880.0,80879.0,0.13618166]
[1741904241121,0.1861869,80880.0,80879.0,0.13618166]
[1741904241322,0.1871869,80880.0,80879.0,0.13618166]
[1741904243326,0.1861869,80880.0,80879.0,0.13618166]
[1741904244230,0.1871869,80880.0,80879.0,0.13618166]
[1741904244628,0.1891869,80880.0,80879.0,0.13618166]
[1741904244933,0.1881869,80880.0,80879.0,0.01249326]
[1741904245128,0.1236884,80879.0,80878.0,0.22106486]
[1741904245536,0.1862884,80879.0,80878.0,0.22106486]
[1741904246234,0.1862884,80879.0,80878.0,0.34475476]
[1741904246435,0.1862884,80879.0,80878.0,0.13626121]
[1741904247835,0.1872884,80879.0,80878.0,0.13626121]
[1741904248522,0.1882884,80879.0,80878.0,0.13626121]
[1741904250126,0.1882884,80879.0,80878.0,0.01257131]
[1741904250336,0.1236976,80873.0,80872.0,0.29268372]
[1741904250530,0.2506976,80873.0,80872.0,0.29268372]
[1741904250839,0.2506976,80873.0,80872.0,0.41638282]
[1741904251330,0.3134976,80873.0,80872.0,0.41638282]
[1741904251934,0.3134976,80873.0,80872.0,0.29268372]
[1741904252240,0.3134976,80873.0,80872.0,0.41638282]
[1741904253431,0.3134976,80873.0,80872.0,0.1236991]
[1741904253627,0.31359618,80873.0,80872.0,0.1236991]
[1741904253828,0.3134976,80873.0,80872.0,0.1236991]
[1741904254234,0.31359618,80873.0,80872.0,0.1236991]
[1741904254432,0.3134976,80873.0,80872.0,0.1236991]
[1741904256430,0.1237007,80871.0,80870.0,0.0618508]
[1741904257843,0.002,80871.0,80870.0,0.1855526]
[1741904258143,0.00209858,80871.0,80870.0,0.2455526]
[1741904258442,0.00409858,80871.0,80870.0,0.2455526]
[1741904260247,9.858e-05,80871.0,80870.0,0.2475526]
[1741904260438,9.858e-05,80871.0,80870.0,0.2485526]
[1741904261148,9.858e-05,80871.0,80870.0,0.2495526]
[1741904261446,0.12379928,80871.0,80870.0,0.2495526]
[1741904261742,9.858e-05,80871.0,80870.0,0.2495526]
[1741904261943,0.12379928,80871.0,80870.0,0.2495526]
[1741904262746,0.18719928,80871.0,80870.0,0.2495526]
[1741904263045,0.18719928,80871.0,80870.0,0.2485526]
[1741904263446,0.18719928,80871.0,80870.0,0.2465526]
[1741904263747,0.18719928,80871.0,80870.0,0.2475526]
[1741904264046,0.18719928,80871.0,80870.0,0.2465526]
[1741904264446,0.18719928,80871.0,80870.0,0.2475526]
[1741904266545,0.18719928,80871.0,80870.0,0.2465526]
[1741904266747,0.18719928,80871.0,80870.0,0.2475526]
[1741904267342,0.18719928,80871.0,80870.0,0.002]
[1741904267847,0.18719928,80871.0,80870.0,0.1257022]
[1741904268150,0.18719928,80871.0,80870.0,0.1247022]
[1741904269453,0.31415928,80871.0,80870.0,0.001]
[1741904269841,0.1237022,80870.0,80869.0,0.1237035]
[1741904270037,0.1548022,80870.0,80869.0,0.1237035]
[1741904270242,0.2166022,80870.0,80869.0,0.1237035]
[1741904272748,0.0618,80870.0,80869.0,0.1237035]
[1741904272949,0.0628,80870.0,80869.0,0.1866035]
[1741904273139,0.1875022,80870.0,80869.0,0.1866035]
[1741904273647,0.1865022,80870.0,80869.0,0.1866035]
[1741904273843,0.1875022,80870.0,80869.0,0.1866035]
[1741904274047,0.1865022,80870.0,80869.0,0.1866035]
[1741904274346,0.1875022,80870.0,80869.0,0.1866035]
[1741904274652,0.1865022,80870.0,80869.0,0.1866035]
[1741904274951,0.1875022,80870.0,80869.0,0.1866035]
[1741904276843,0.1865022,80870.0,80869.0,0.1866035]
[1741904277153,0.1855022,80870.0,80869.0,0.1237035]
[1741904277652,0.1865022,80870.0,80869.0,0.1237035]
[1741904277843,0.1875022,80870.0,80869.0,0.1237035]
[1741904278246,0.1865022,80870.0,80869.0,0.1237035]
[1741904278443,0.1875022,80870.0,80869.0,0.1237035]
[1741904279648,0.1875022,80870.0,80869.0,0.1547035]
[1741904279844,0.1865022,80870.0,80869.0,0.1547035]
[1741904280045,0.1895022,80870.0,80869.0,0.1547035]
[1741904280454,0.1875022,80870.0,80869.0,0.1237035]
[1741904280653,0.1885022,80870.0,80869.0,0.1237035]
[1741904280845,0.1237037,80869.0,80868.0,0.1237037]
[1741904281256,0.1237098,80865.0,80864.0,0.0618553]
[1741904281647,0.12380838,80865.0,80864.0,0.0618553]
[1741904281848,0.12380838,80865.0,80861.0,0.0618574]
[1741904282151,0.1237144,80863.0,80862.0,0.123714]
[1741904282542,0.0658,80863.0,80862.0,0.154114]
[1741904282748,0.0658,80863.0,80862.0,0.186614]
[1741904283149,0.0658,80863.0,80862.0,0.19895069]
[1741904283646,0.0668,80863.0,80862.0,0.19895069]
[1741904284060,0.0658,80863.0,80862.0,0.19895069]
[1741904284353,0.0658,80863.0,80862.0,0.19995069]
[1741904284759,0.1895129,80863.0,80862.0,0.19995069]
[1741904285455,0.1895129,80863.0,80862.0,0.20095069]
[1741904286651,0.0658,80863.0,80862.0,0.20095069]
[1741904289456,0.0658,80863.0,80862.0,0.19995069]
[1741904289657,0.0658,80863.0,80862.0,0.20095069]
[1741904291453,0.1895129,80863.0,80862.0,0.20095069]
[1741904291955,0.1895129,80863.0,80862.0,0.13805069]
[1741904293053,0.0658,80863.0,80862.0,0.13805069]
[1741904293255,0.1895129,80863.0,80862.0,0.20095069]
[1741904294355,0.0658,80863.0,80862.0,0.20095069]
[1741904294660,0.1895129,80863.0,80862.0,0.19995069]
[1741904297763,0.0658,80863.0,80862.0,0.19995069]
[1741904298358,0.1895129,80863.0,80862.0,0.19995069]
[1741904299260,0.0658,80863.0,80862.0,0.19995069]
[1741904303974,0.0618443,80879.0,80878.0,0.1855311]
[1741904305262,0.1905327,80879.0,80878.0,0.1855311]
[1741904306674,0.1905327,80879.0,80878.0,0.2176311]
[1741904307073,0.009,80879.0,80878.0,0.2176311]
[1741904307373,0.1326884,80879.0,80878.0,0.2176311]
[1741904307975,0.1326884,80879.0,80878.0,0.2480311]
[1741904309268,0.1943884,80879.0,80878.0,0.2480311]
[1741904310072,0.1943884,80879.0,80878.0,0.0618442]
[1741904311076,0.1855547,80871.0,80870.0,0.0618503]
[1741904311276,0.1237037,80869.0,80868.0,0.0618521]
[1741904311476,0.1237037,80869.0,80868.0,0.0818521]
[1741904311872,0.1877037,80869.0,80868.0,0.0818521]
[1741904312069,0.064,80869.0,80868.0,0.0818521]
[1741904312380,0.064,80869.0,80868.0,0.09407635]
[1741904312884,0.064,80869.0,80868.0,0.12637635]
[1741904313180,0.1877037,80869.0,80868.0,0.15727635]
[1741904313485,0.1887037,80869.0,80868.0,0.15727635]
[1741904314189,0.1877037,80869.0,80868.0,0.15727635]
[1741904314684,0.1877037,80869.0,80868.0,0.15827635]
[1741904314880,0.1877037,80869.0,80868.0,0.15927635]
[1741904316078,0.064,80869.0,80868.0,0.15927635]
[1741904317684,0.1877037,80869.0,80868.0,0.15927635]
[1741904318186,0.1877037,80869.0,80868.0,0.15827635]
[1741904318386,0.1877037,80869.0,80868.0,0.15927635]
[1741904318587,0.064,80869.0,80868.0,0.15927635]
[1741904319081,0.064,80869.0,80868.0,0.15827635]
[1741904320295,0.064,80869.0,80868.0,0.15727635]
[1741904320786,0.1877037,80869.0,80868.0,0.15927635]
[1741904321386,0.064,80869.0,80868.0,0.15827635]
[1741904321578,0.064,80869.0,80868.0,0.15927635]
[1741904324292,0.1877037,80869.0,80868.0,0.15727635]
[1741904324494,0.1877037,80869.0,80868.0,0.15927635]
[1741904324889,0.1877037,80869.0,80868.0,0.15827635]
[1741904325394,0.1877037,80869.0,80868.0,0.16027635]
[1741904325985,0.1877037,80869.0,80868.0,0.15827635]
[1741904326601,0.1877037,80869.0,80868.0,0.15727635]
[1741904329790,0.1237114,80865.0,80863.0,0.1237114]
[1741904330087,0.1237114,80865.0,80864.0,0.1237052]
[1741904330690,0.1237114,80865.0,80864.0,0.1557052]
[1741904331386,0.1237114,80865.0,80864.0,0.1878052]
[1741904331596,0.1237114,80865.0,80864.0,0.1888052]
[1741904332399,0.1237114,80865.0,80864.0,0.1898052]
[1741904338907,0.1237114,80865.0,80864.0,0.1577052]
[1741904340324,0.1237114,80865.0,80864.0,0.1892052]
[1741904341924,0.1237114,80865.0,80864.0,0.1577052]
[1741904342714,0.1237114,80865.0,80864.0,0.1890052]
[1741904343412,0.1555114,80865.0,80864.0,0.1890052]
[1741904346124,0.1874114,80865.0,80864.0,0.1890052]
[1741904346624,0.1874114,80865.0,80864.0,0.19988879]
[1741904347016,0.1874114,80865.0,80864.0,0.16858879]
[1741904347220,0.1874114,80865.0,80864.0,0.13658879]
[1741904347420,0.1874114,80865.0,80864.0,0.1257052]
[1741904350328,0.1874114,80865.0,80864.0,0.1257114]
[1741904353627,0.1374114,80865.0,80864.0,0.1257114]
[1741904357524,0.1374114,80865.0,80864.0,0.1247114]
[1741904357720,0.1394114,80865.0,80864.0,0.1247114]
[1741904358533,0.1394114,80865.0,80864.0,0.001]
[1741904358730,0.1237114,80864.0,80863.0,0.1237125]
[1741904359131,0.1857114,80864.0,80863.0,0.1237125]
[1741904360128,0.1237175,80860.0,80859.0,0.1237176]
[1741904360332,0.1237175,80860.0,80859.0,0.2474359]
[1741904361023,0.1844175,80860.0,80859.0,0.2798359]
[1741904361425,0.1854175,80860.0,80859.0,0.2798359]
[1741904361925,0.1854175,80860.0,80857.0,0.01235697]
[1741904362119,0.1854175,80860.0,80858.0,0.1237198]
[1741904362120,0.1855823,80859.0,80858.0,0.1237198]
[1741904362623,0.2485823,80859.0,80858.0,0.1237198]
[1741904363636,0.2495823,80859.0,80858.0,0.1237198]
[1741904364632,0.2495823,80859.0,80858.0,0.1548198]
[1741904365134,0.2495823,80859.0,80858.0,0.1237198]
[1741904366227,0.2495823,80859.0,80858.0,0.1860198]
[1741904366429,0.2495823,80859.0,80858.0,0.1549198]
[1741904366937,0.2495823,80859.0,80858.0,0.0623]
[1741904367239,0.2495823,80859.0,80858.0,0.1549205]
[1741904368535,0.2485823,80859.0,80858.0,0.1549205]
[1741904370434,0.1248602,80859.0,80852.0,0.0618641]
[1741904370637,0.1237267,80855.0,80854.0,0.185582]
[1741904370837,0.1237267,80855.0,80854.0,0.216582]
[1741904371031,0.1845267,80855.0,80854.0,0.249382]
[1741904372441,0.1845267,80855.0,80854.0,0.250382]
[1741904374041,0.1845267,80855.0,80854.0,0.251382]
[1741904380439,0.1845267,80855.0,80854.0,0.250382]
[1741904380644,0.1845267,80855.0,80854.0,0.251382]
[1741904380845,0.1845267,80855.0,80854.0,0.271382]
[1741904381040,0.1845267,80855.0,80854.0,0.251382]
[1741904383547,0.1845267,80855.0,80854.0,0.47207631]
[1741904384941,0.1845267,80855.0,80854.0,0.47107631]
[1741904386046,0.1845267,80855.0,80854.0,0.47207631]
[1741904386441,0.1845267,80855.0,80854.0,0.251382]
[1741904388050,0.1845267,80855.0,80854.0,0.250382]
[1741904389250,0.1845267,80855.0,80854.0,0.47107631]
[1741904402767,0.1845267,80855.0,80854.0,0.250382]
[1741904404259,0.1845267,80855.0,80854.0,0.001]
[1741904410365,0.0608,80855.0,80853.0,0.1237279]
[1741904410565,0.2493876,80855.0,80854.0,0.0329]
[1741904410877,0.2523876,80855.0,80854.0,0.0329]
[1741904411572,0.1237297,80852.0,80851.0,0.01256327]
[1741904411875,0.1237297,80852.0,80851.0,0.1550313]
[1741904412077,0.1539297,80852.0,80851.0,0.1550313]
[1741904412265,0.1539297,80852.0,80851.0,0.16745568]
[1741904412965,0.1861297,80852.0,80851.0,0.19975568]
[1741904413265,0.1881297,80852.0,80851.0,0.19975568]
[1741904413967,0.1901297,80852.0,80851.0,0.19975568]
[1741904414967,0.20265826,80852.0,80851.0,0.19975568]
[1741904415668,0.1901297,80852.0,80851.0,0.19975568]
[1741904418477,0.20238913,80852.0,80851.0,0.19975568]
[1741904419177,0.1901297,80852.0,80851.0,0.19975568]
[1741904420877,0.20280583,80852.0,80851.0,0.19975568]
[1741904421981,0.20280583,80852.0,80851.0,0.1873313]
[1741904423074,0.20280583,80852.0,80851.0,0.0636]
[1741904423377,0.23570583,80852.0,80851.0,0.1873313]
[1741904425074,0.1237343,80849.0,80848.0,0.22069431]
[1741904425275,0.1237343,80849.0,80848.0,0.23313728]
[1741904425881,0.1878343,80849.0,80848.0,0.23313728]
[1741904426885,0.1918343,80849.0,80848.0,0.23313728]
[1741904427481,0.1918343,80849.0,80848.0,0.26383728]
[1741904427882,0.1918343,80849.0,80848.0,0.29693728]
[1741904428079,0.1918343,80849.0,80848.0,0.42067318]
[1741904429882,0.3184743,80849.0,80848.0,0.42067318]
[1741904431075,0.3184743,80849.0,80848.0,0.19997887]
[1741904432188,0.0681,80849.0,80848.0,0.19997887]
[1741904432383,0.004,80849.0,80848.0,0.19997887]
[1741904432590,0.1277343,80849.0,80848.0,0.19997887]
[1741904433680,0.1886343,80849.0,80848.0,0.19997887]
[1741904433880,0.1906343,80849.0,80848.0,0.19997887]
[1741904434774,0.1896343,80849.0,80848.0,0.19997887]
[1741904437480,0.0351,80849.0,80848.0,0.19997887]
[1741904437687,0.003,80849.0,80848.0,0.21997887]
[1741904437983,0.1247343,80849.0,80848.0,0.21997887]
[1741904438894,0.1237343,80849.0,80848.0,0.21997887]
[1741904439287,0.0326,80850.0,80848.0,0.09624297]
[1741904439595,0.0326,80850.0,80849.0,0.1237343]
[1741904440095,0.0326,80850.0,80849.0,0.1852343]
[1741904441695,0.0326,80850.0,80849.0,0.41592861]
[1741904442190,0.0326,80850.0,80849.0,0.41692861]
[1741904442694,0.0646,80850.0,80849.0,0.41692861]
[1741904443092,0.1883328,80850.0,80849.0,0.41792861]
[1741904443590,0.1883328,80850.0,80849.0,0.41692861]
[1741904444493,0.1883328,80850.0,80849.0,0.1962343]
[1741904444695,0.1883328,80850.0,80849.0,0.1952343]
[1741904444895,0.1883328,80850.0,80849.0,0.1962343]
[1741904445490,0.0646,80850.0,80849.0,0.1962343]
[1741904446387,0.0646,80850.0,80849.0,0.1952343]
[1741904446692,0.0646,80850.0,80849.0,0.1852343]
[1741904448794,0.0646,80850.0,80849.0,0.1862343]
[1741904449496,0.0646,80850.0,80849.0,0.1852343]
[1741904449797,0.0646,80850.0,80849.0,0.1862343]
[1741904451595,0.26263066,80861.0,80860.0,0.1237175]
[1741904452192,0.29303066,80861.0,80860.0,0.1547175]
[1741904452987,0.32543066,80861.0,80860.0,0.1871175]
[1741904453201,0.32843066,80861.0,80860.0,0.1871175]
[1741904453706,0.32843066,80861.0,80860.0,0.19980866]
[1741904454202,0.07515426,80861.0,80860.0,0.19980866]
[1741904454392,0.2473749,80883.0,80882.0,0.185522]
[1741904454595,0.1236915,80877.0,80876.0,0.1855376]
[1741904456325,0.1884915,80877.0,80876.0,0.1855376]
[1741904456816,0.1884915,80877.0,80876.0,0.2173376]
[1741904457121,0.1894915,80877.0,80876.0,0.2173376]
[1741904457423,0.1884915,80877.0,80876.0,0.22820097]
[1741904457624,0.1894915,80877.0,80876.0,0.22820097]
[1741904457921,0.0648,80877.0,80876.0,0.24046181]
[1741904458222,0.1884915,80877.0,80876.0,0.24046181]
[1741904458922,0.0638,80877.0,80876.0,0.24046181]
[1741904459519,0.1874915,80877.0,80876.0,0.24046181]
[1741904460223,0.0638,80877.0,80876.0,0.24046181]
[1741904460415,0.1874915,80877.0,80876.0,0.24046181]
[1741904463413,0.0638,80877.0,80876.0,0.24046181]
[1741904463614,0.1236686,80897.0,80896.0,0.1854834]
[1741904463822,0.2501886,80897.0,80896.0,0.1854834]
[1741904464026,0.26231442,80897.0,80896.0,0.1854834]
[1741904465115,0.26731442,80897.0,80896.0,0.1854834]
[1741904465823,0.14079442,80897.0,80896.0,0.1854834]
[1741904466015,0.14579442,80897.0,80896.0,0.1864834]
[1741904466820,0.20829442,80897.0,80896.0,0.1864834]
[1741904467429,0.20829442,80897.0,80896.0,0.001]
[1741904468329,0.20829442,80897.0,80896.0,0.1246624]
[1741904468533,0.20829442,80897.0,80896.0,0.1877624]
[1741904470227,0.20829442,80897.0,80896.0,0.0641]
[1741904471523,0.20829442,80897.0,80896.0,0.0325]
[1741904474437,0.20829442,80897.0,80896.0,0.1561624]
[1741904475337,0.20829442,80897.0,80896.0,0.0325]
[1741904475727,0.20829442,80897.0,80896.0,0.001]
[1741904476536,0.0725,80897.0,80896.0,0.14837456]
[1741904476736,0.0618117,80922.0,80898.0,0.061829]
[1741904476936,0.1854605,80914.0,80913.0,0.0618167]
[1741904477244,0.1554282,80919.0,80918.0,0.1236288]
[1741904477438,0.1886282,80919.0,80918.0,0.1236288]
[1741904478035,0.1886282,80919.0,80918.0,0.1539288]
[1741904478439,0.1886282,80919.0,80918.0,0.16618786]
[1741904478737,0.1886282,80919.0,80918.0,0.1539288]
[1741904479136,0.1236282,80919.0,80918.0,0.1539288]
[1741904479340,0.1236282,80919.0,80918.0,0.16657343]
[1741904479642,0.1545282,80919.0,80918.0,0.1539288]
[1741904480033,0.1605282,80919.0,80918.0,0.1539288]
[1741904481732,0.1605282,80919.0,80918.0,0.1662858]
[1741904482838,0.1914282,80919.0,80918.0,0.1662858]
[1741904484129,0.1265854,80927.0,80918.0,0.1662858]
[1741904484130,0.0001854,80927.0,80918.0,0.17726051]
[1741904484336,0.1854235,80929.0,80928.0,0.0618045]
[1741904484536,0.0618069,80929.0,80928.0,0.07286511]
[1741904485242,0.0306,80931.0,80930.0,0.1236105]
[1741904485433,0.154209,80931.0,80930.0,0.13475316]
[1741904485641,0.154209,80931.0,80930.0,0.19925316]
[1741904485933,0.2160126,80935.0,80934.0,0.1236028]
[1741904486139,0.0618036,80935.0,80934.0,0.1881028]
[1741904486338,0.0618036,80935.0,80934.0,0.2212028]
[1741904487144,0.0648036,80935.0,80934.0,0.2212028]
[1741904488241,0.003,80935.0,80934.0,0.2212028]
[1741904488641,0.1266028,80935.0,80934.0,0.2212028]
[1741904489744,0.1266028,80935.0,80934.0,0.23233463]
[1741904491139,0.003,80935.0,80934.0,0.23233463]
[1741904491539,0.1266028,80935.0,80934.0,0.2212028]
[1741904491740,0.1266028,80935.0,80934.0,0.23226745]
[1741904493747,0.1266028,80935.0,80934.0,0.07556465]
[1741904493946,0.1236151,80927.0,80926.0,0.1238015]
[1741904494143,0.1236151,80927.0,80926.0,0.13490297]
[1741904495146,0.1236151,80927.0,80926.0,0.0001854]
[1741904495344,0.1555151,80927.0,80926.0,0.16670628]
[1741904495544,0.1555151,80927.0,80926.0,0.154502]
[1741904496351,0.1555151,80927.0,80926.0,0.186102]
[1741904496749,0.1585151,80927.0,80926.0,0.186102]
[1741904497456,0.1585151,80927.0,80926.0,0.19710045]
[1741904497948,0.1585151,80927.0,80926.0,0.0624854]
[1741904499243,0.1585151,80927.0,80926.0,0.186102]
[1741904499547,0.1585151,80927.0,80926.0,0.0308854]
[1741904500752,0.16014171,80927.0,80926.0,0.0308854]
[1741904500950,0.16014171,80927.0,80926.0,0.0001854]
[1741904501146,0.123641,80910.0,80909.0,0.01233457]
[1741904501349,0.123641,80910.0,80909.0,0.19760699]
[1741904501544,0.12526761,80910.0,80909.0,0.19760699]
[1741904501847,0.12526761,80910.0,80909.0,0.20985483]
[1741904502039,0.12526761,80910.0,80909.0,0.19760699]
[1741904502242,0.0332,80915.0,80909.0,0.19760699]